bitfinex/quotes_ETHUSD_20240816
["timestamp","ask_amount","ask_price","bid_price","bid_amount"]
[1723809438728,3.81928,2618.3,2617.9,0.97394008]
[1723809438729,3.80428,2618.3,2617.9,0.97394008]
[1723809439631,3.81912,2618.4,2617.9,0.97394008]
[1723809440335,3.81929,2618.3,2617.9,0.97394008]
[1723809441326,3.81929,2618.3,2618.0,0.38578109]
[1723809441635,3.81941,2618.2,2618.0,0.38578109]
[1723809441799,3.81941,2618.2,2617.8,2.8838708]
[1723809442001,3.81958,2618.1,2617.6,27.24]
[1723809442316,3.81995,2617.9,2617.6,27.24]
[1723809442516,3.81963,2618.1,2617.6,29.964]
[1723809442739,3.81958,2618.1,2617.6,29.964]
[1723809443122,3.81958,2618.1,2617.6,33.78425]
[1723809443334,3.81942,2618.2,2617.7,3.760458]
[1723809443833,3.81927,2618.3,2617.7,7.580598]
[1723809445396,7.63843,2618.4,2617.8,5.560199]
[1723809445595,2.3398,2618.8,2617.9,3.81982]
[1723809445596,3.81898,2618.5,2617.9,3.81982]
[1723809445839,3.81917,2618.4,2617.9,3.81982]
[1723809446042,3.81917,2618.4,2618.0,0.5560029]
[1723809447521,3.81927,2618.3,2618.0,0.5560029]
[1723809447733,7.63865,2618.3,2617.8,1.740209]
[1723809448037,3.81942,2618.2,2617.8,1.740209]
[1723809448621,3.81958,2618.1,2617.6,7.45]
[1723809448829,3.81958,2618.1,2617.6,11.27028]
[1723809449632,3.81942,2618.2,2617.6,15.09049]
[1723809449810,3.81942,2618.2,2617.7,3.106028]
[1723809450739,3.81959,2618.1,2617.7,3.106028]
[1723809451035,3.81941,2618.2,2617.7,3.106028]
[1723809451237,7.6385,2618.4,2617.8,5.2576138]
[1723809451539,3.81925,2618.4,2617.9,0.83636418]
[1723809453246,3.8192,2618.4,2617.9,3.22376418]
[1723809453401,3.8192,2618.4,2617.9,4.65619418]
[1723809453603,3.81898,2618.5,2618.0,0.6093818]
[1723809453803,3.81898,2618.5,2617.9,8.47588418]
[1723809454039,3.81898,2618.5,2617.9,4.65610418]
[1723809454337,3.81898,2618.5,2618.0,3.8197]
[1723809454523,3.81865,2618.8,2618.1,2.2524]
[1723809454837,3.81865,2618.8,2618.1,2.71800642]
[1723809455242,7.63787,2618.6,2618.1,2.71800642]
[1723809455443,3.8189,2618.6,2618.1,2.2524]
[1723809455611,7.63781,2618.6,2618.0,3.81968]
[1723809455917,3.8189,2618.6,2618.0,3.81968]
[1723809456112,3.8189,2618.6,2618.1,0.381968]
[1723809458241,7.63781,2618.6,2618.1,0.381968]
[1723809458468,3.8189,2618.6,2618.1,0.381968]
[1723809459027,7.63783,2618.6,2618.1,0.381968]
[1723809459225,3.81898,2618.5,2618.1,0.381968]
[1723809459439,3.81898,2618.5,2617.8,2.2524]
[1723809459440,3.81934,2618.3,2617.8,2.2524]
[1723809459778,3.81934,2618.3,2617.8,3.986674]
[1723809460446,3.81934,2618.3,2617.8,7.806654]
[1723809461034,3.81934,2618.3,2617.8,1.734274]
[1723809461808,3.81934,2618.3,2617.7,3.82014]
[1723809463335,3.81934,2618.3,2617.8,3.81999]
[1723809467175,3.81934,2618.3,2617.8,3.81993]
[1723809467912,3.81934,2618.3,2617.8,7.63986]
[1723809468116,3.81934,2618.3,2617.8,9.148846]
[1723809468320,3.81934,2618.3,2617.8,5.328916]
[1723809469878,3.81934,2618.3,2617.8,6.640916]
[1723809470523,7.63875,2618.3,2617.8,2.820986]
[1723809470689,3.81934,2618.3,2617.8,2.820986]
[1723809471090,3.81949,2618.2,2617.8,2.820986]
[1723809471407,3.81949,2618.2,2617.8,1.312]
[1723809471635,3.81934,2618.3,2617.8,1.312]
[1723809471793,3.81942,2618.2,2617.6,16.40239]
[1723809472323,3.81942,2618.2,2617.6,12.58217]
[1723809472477,3.81942,2618.2,2617.7,1.32799889]
[1723809472677,3.81942,2618.2,2617.6,20.21184125]
[1723809472880,3.81942,2618.2,2617.6,16.39162125]
[1723809473089,3.81934,2618.3,2617.8,1.312]
[1723809473391,3.81934,2618.3,2617.8,5.13199]
[1723809473980,7.63872,2618.3,2617.8,5.13199]
[1723809474219,3.81934,2618.3,2617.8,5.13199]
[1723809474392,3.81934,2618.3,2617.8,1.312]
[1723809475417,3.81934,2618.3,2617.8,7.12849403]
[1723809475755,6.07662,2618.4,2618.0,1.312]
[1723809477636,6.07662,2618.4,2617.8,36.99653403]
[1723809477637,3.81934,2618.3,2617.8,1.312]
[1723809477833,3.81942,2618.2,2617.9,1.32788963]
[1723809478156,3.81942,2618.2,2617.8,1.312]
[1723809479464,3.81942,2618.2,2617.7,41.58458502]
[1723809479782,4.03133806,2618.4,2617.6,7.45]
[1723809479984,4.03133806,2618.4,2617.0,1.99643825]
[1723809479985,3.82051,2617.5,2617.0,1.99643825]
[1723809480141,3.82066,2617.4,2617.1,1.32833958]
[1723809480338,3.89690787,2617.3,2616.8,8.2485753]
[1723809480649,3.82075,2617.3,2616.9,1.32846391]
[1723809480969,3.82075,2617.3,2616.8,11.25945125]
[1723809481140,3.82075,2617.3,2616.9,1.32845616]
[1723809481340,3.82075,2617.3,2616.8,11.25945125]
[1723809481705,6.09845,2617.3,2616.8,11.25945125]
[1723809484147,9.91926,2617.3,2616.8,7.45]
[1723809484349,6.09845,2617.3,2616.8,7.45]
[1723809485489,2.2777,2617.3,2616.8,7.45]
[1723809485783,2.2777,2617.3,2616.8,11.27145]
[1723809485985,2.2777,2617.3,2616.9,3.488295]
[1723809487473,6.0985,2617.3,2616.7,19.79]
[1723809487667,6.0985,2617.3,2616.7,23.61158]
[1723809488556,2.2777,2617.3,2616.8,3.82135]
[1723809488771,2.2777,2617.3,2616.9,6.564563]
[1723809488965,2.2777,2617.3,2616.9,2.743293]
[1723809490196,2.4957,2617.6,2617.1,3.82093]
[1723809490370,2.4957,2617.6,2617.2,0.382093]
[1723809492095,3.82049,2617.5,2617.0,19.79]
[1723809492772,6.09135,2617.7,2617.1,3.821]
[1723809492986,3.8203,2617.6,2617.2,2.3611]
[1723809493295,9.91163,2617.7,2617.0,19.79]
[1723809493502,9.91163,2617.7,2617.0,23.61106]
[1723809493698,6.09135,2617.7,2617.0,23.61106]
[1723809493896,3.82031,2617.6,2617.1,3.7625573]
[1723809494819,6.09174,2617.4,2616.7,38.82153]
[1723809495020,3.8208,2617.3,2616.7,38.82152]
[1723809495835,2.2711,2617.4,2616.7,38.82152]
[1723809496125,6.09169,2617.4,2616.8,3.82137]
[1723809496335,6.09169,2617.4,2616.9,3.80945125]
[1723809498108,2.2711,2617.4,2616.9,7.63071125]
[1723809498307,3.82037,2617.6,2617.0,3.82115]
[1723809498529,3.82045,2617.5,2617.1,0.382115]
[1723809500235,7.64096,2617.5,2617.1,0.382115]
[1723809500706,3.82058,2617.4,2617.1,0.382115]
[1723809500911,6.1736,2617.3,2616.7,3.82152]
[1723809501124,9.99444,2617.3,2616.7,3.82152]
[1723809501420,6.1736,2617.3,2616.7,4.813419]
[1723809501627,9.99447,2617.3,2616.7,4.813419]
[1723809501826,6.1736,2617.3,2616.7,4.813419]
[1723809502127,3.82089,2617.2,2616.7,39.813419]
[1723809502315,3.82089,2617.2,2616.8,3.80945125]
[1723809503419,6.17355,2617.3,2616.8,3.80945125]
[1723809504306,3.82095,2617.2,2616.7,0.991899]
[1723809505707,3.82095,2617.2,2616.7,4.813479]
[1723809505903,2.3528,2617.3,2616.7,6.126479]
[1723809506105,6.17354,2617.3,2616.8,0.6126479]
[1723809506926,3.82088,2617.2,2616.8,0.6126479]
[1723809507130,3.82088,2617.2,2616.7,2.304899]
[1723809507732,1.38915787,2617.2,2616.4,3.82199]
[1723809507945,3.82132,2616.9,2616.5,20.34]
[1723809508125,6.38551787,2617.1,2616.5,55.34]
[1723809508433,3.82117,2617.0,2616.6,2.416199]
[1723809509718,2.4882,2617.1,2616.7,2.6578089]
[1723809510049,6.30922,2617.1,2616.7,2.6578089]
[1723809510259,6.30922,2617.1,2616.6,2.416199]
[1723809510754,3.82117,2617.0,2616.6,2.416199]
[1723809511505,2.4882,2617.1,2616.6,6.237939]
[1723809511766,2.4882,2617.1,2616.7,3.1712719]
[1723809511767,6.30929,2617.1,2616.7,3.1712719]
[1723809511927,6.30929,2617.1,2616.6,2.416199]
[1723809512130,3.8208,2617.3,2616.8,3.82139]
[1723809512369,6.10868,2617.4,2616.9,0.382139]
[1723809512535,6.10868,2617.4,2616.9,4.203439]
[1723809512536,3.82058,2617.4,2616.9,4.203439]
[1723809512714,3.82058,2617.4,2617.0,0.8024809]
[1723809512715,7.64127,2617.4,2617.0,0.8024809]
[1723809513036,3.82073,2617.3,2617.0,0.8024809]
[1723809513235,3.82073,2617.3,2616.8,3.82136]
[1723809513545,3.82058,2617.4,2616.7,36.313]
[1723809513546,3.8209,2617.2,2616.7,36.313]
[1723809514363,3.82077,2617.3,2616.7,40.13453]
[1723809514673,3.82077,2617.3,2616.8,3.80945125]
[1723809515730,2.2716,2617.2,2616.8,3.80945125]
[1723809517854,6.0925,2617.2,2616.8,3.80945125]
[1723809519054,2.2716,2617.2,2616.8,3.80945125]
[1723809519224,2.2716,2617.2,2616.9,2.76445502]
[1723809520249,2.2716,2617.2,2616.7,40.13455]
[1723809520572,6.09248,2617.2,2616.7,40.13455]
[1723809521016,6.09248,2617.2,2616.7,38.82155]
[1723809521922,2.2716,2617.2,2616.7,42.64308]
[1723809522118,2.2716,2617.2,2616.8,3.80945125]
[1723809522314,2.2716,2617.2,2616.8,7.63089125]
[1723809522740,2.2716,2617.2,2616.8,42.63089125]
[1723809523134,2.2716,2617.2,2616.8,7.63089125]
[1723809530057,2.2716,2617.2,2616.8,3.80945125]
[1723809530853,2.2716,2617.2,2616.7,38.8216]
[1723809531125,2.2716,2617.2,2616.8,1.32854383]
[1723809531326,2.2716,2617.2,2616.7,38.8216]
[1723809531778,2.2716,2617.2,2616.7,3.8216]
[1723809533939,0.07615787,2617.1,2616.5,0.7985753]
[1723809534271,3.82131,2616.9,2616.6,1.32866695]
[1723809534456,3.82131,2616.9,2616.4,35.7985753]
[1723809534637,6.20441,2616.8,2616.5,1.32866961]
[1723809534837,6.20441,2616.8,2616.3,27.24]
[1723809535044,6.20441,2616.8,2616.4,1.32871061]
[1723809535245,3.82161,2616.7,2616.3,62.24]
[1723809535493,3.82161,2616.7,2616.3,27.24]
[1723809535638,7.64334,2616.7,2616.3,27.24]
[1723809535834,3.82161,2616.7,2616.3,27.24]
[1723809538259,7.6433,2616.7,2616.3,27.24]
[1723809538464,3.82161,2616.7,2616.3,27.24]
[1723809539447,3.82161,2616.7,2616.1,38.82246]
[1723809539652,3.82161,2616.7,2616.2,3.80945125]
[1723809540056,6.2001,2617.1,2616.6,1.313]
[1723809540421,6.2001,2617.1,2616.6,5.13466]
[1723809540422,2.379,2617.1,2616.6,5.13466]
[1723809540699,2.379,2617.1,2616.7,3.82158]
[1723809541053,2.379,2617.1,2616.6,6.11017353]
[1723809542503,2.379,2617.1,2616.7,3.82158]
[1723809542681,2.379,2617.1,2616.8,0.61100835]
[1723809543153,2.379,2617.1,2616.6,2.28850353]
[1723809543492,2.379,2617.1,2616.1,0.7985753]
[1723809543493,3.82214,2616.4,2616.1,0.7985753]
[1723809543659,3.82214,2616.4,2615.6,5.8165172]
[1723809543660,2.4679,2616.3,2615.6,5.8165172]
[1723809543859,2.4679,2616.3,2615.7,5.1519729]
[1723809544062,2.4679,2616.3,2615.6,3.8231]
[1723809544063,2.54405787,2616.3,2615.6,3.8231]
[1723809544297,3.89856787,2616.2,2615.5,3.82335]
[1723809544472,6.27659,2616.1,2615.5,3.82335]
[1723809544790,7.58959,2616.1,2615.5,3.82335]
[1723809545111,3.7671,2616.1,2615.6,3.82317]
[1723809545952,2.4541,2616.1,2615.6,3.82317]
[1723809549383,2.4541,2616.1,2615.7,3.82297]
[1723809549763,2.4541,2616.1,2615.6,0.382317]
[1723809550158,2.4541,2616.1,2615.5,3.82321]
[1723809550378,6.27658,2616.1,2615.5,3.82321]
[1723809550786,6.27658,2616.1,2615.5,7.64649]
[1723809551352,2.4541,2616.1,2615.6,3.8232]
[1723809551553,2.4541,2616.1,2615.7,3.82298]
[1723809551757,2.4541,2616.1,2615.5,3.82323]
[1723809552009,2.4541,2616.1,2615.7,3.82299]
[1723809554012,2.4541,2616.1,2615.5,7.64653]
[1723809554174,3.081734,2616.1,2615.5,3.82324]
[1723809554355,2.4541,2616.1,2615.6,3.82313]
[1723809555289,2.4541,2616.1,2615.7,3.82303]
[1723809555512,2.4541,2616.1,2615.7,3.82296]
[1723809555660,2.4541,2616.1,2615.7,3.823]
[1723809556195,2.4541,2616.1,2615.6,3.82321]
[1723809558127,2.4541,2616.1,2615.7,3.82306]
[1723809561489,2.4541,2616.1,2615.3,3.82355]
[1723809561810,6.29313,2615.7,2615.1,3.82393]
[1723809562013,7.304742,2615.7,2615.2,19.79]
[1723809562602,6.29313,2615.7,2615.1,3.82393]
[1723809563268,2.47,2615.7,2615.2,3.82376]
[1723809563669,6.29307,2615.7,2615.2,3.82376]
[1723809563901,2.47,2615.7,2614.8,2.357]
[1723809564102,2.47,2615.7,2615.3,3.82357]
[1723809565105,2.47,2615.7,2615.2,3.82379]
[1723809565305,3.099294,2615.7,2615.2,3.82379]
[1723809565634,2.4951,2615.6,2615.2,3.82379]
[1723809568468,6.31834,2615.6,2614.9,4.37419]
[1723809568673,3.82387,2615.2,2614.6,3.82456]
[1723809568884,6.25241787,2615.1,2614.5,3.82471]
[1723809569113,3.90011787,2615.1,2614.5,3.82471]
[1723809569337,3.90011787,2615.1,2614.4,3.82496]
[1723809569338,6.1765,2615.0,2614.4,3.82496]
[1723809569531,6.1765,2615.0,2614.3,3.82501]
[1723809569532,4.83198179,2614.9,2614.3,3.82501]
[1723809569905,2.288,2614.7,2614.3,3.82501]
[1723809570830,2.2574,2615.2,2615.1,3.82394]
[1723809571129,2.2574,2615.2,2614.6,3.82458]
[1723809571130,2.2574,2615.2,2614.9,3.82409]
[1723809572135,2.2574,2615.2,2614.9,7.64825]
[1723809573060,2.2574,2615.2,2615.0,3.82407]
[1723809573193,2.2574,2615.2,2615.1,3.82394]
[1723809573535,2.3014,2615.7,2615.1,3.82394]
[1723809573707,4.587834,2615.6,2615.1,3.82394]
[1723809574031,2.3014,2615.5,2615.1,3.82394]
[1723809574328,2.3014,2615.5,2614.8,3.82428]
[1723809574329,2.3014,2615.5,2615.0,3.82408]
[1723809574528,0.6889234,2615.4,2615.0,3.82408]
[1723809575510,2.3014,2615.3,2614.8,3.82428]
[1723809575730,6.12514,2615.3,2614.7,3.82448]
[1723809575937,6.80652334,2615.3,2614.7,3.82448]
[1723809576842,2.98278334,2615.3,2614.8,3.82434]
[1723809578199,2.3014,2615.3,2614.8,7.64865]
[1723809578406,2.3014,2615.3,2614.8,3.82431]
[1723809579213,2.3014,2615.3,2614.8,3.8243]
[1723809580692,6.12507,2615.3,2614.8,3.8243]
[1723809580847,0.994858,2615.2,2614.8,3.8243]
[1723809581644,2.3342,2615.1,2614.8,3.82427]
[1723809581803,2.3342,2615.1,2614.9,3.82423]
[1723809582003,2.3838,2615.4,2615.0,3.82394]
[1723809582252,2.3838,2615.4,2615.1,3.82387]
[1723809582805,2.3838,2616.0,2615.6,3.82318]
[1723809586948,2.453,2616.4,2615.3,22.2569]
[1723809587264,6.27504,2616.4,2615.4,22.7989287]
[1723809587426,3.82221,2616.3,2615.4,22.7989287]
[1723809587625,2.2704,2616.2,2615.4,22.7989287]
[1723809587826,3.82249,2616.1,2615.4,22.7989287]
[1723809588842,6.09281,2616.2,2615.4,22.7989287]
[1723809589044,6.09281,2616.2,2615.5,2.27989287]
[1723809590157,2.2704,2616.2,2615.5,2.27989287]
[1723809590962,2.2704,2616.2,2615.7,3.82299]
[1723809594790,2.2704,2616.2,2615.8,3.82289]
[1723809595087,2.2704,2616.2,2615.8,3.82285]
[1723809595288,2.2704,2616.2,2615.8,7.64569]
[1723809595487,2.2704,2616.2,2615.8,3.82284]
[1723809596384,2.2704,2616.2,2615.7,3.82306]
[1723809596796,6.09274,2616.2,2615.7,3.82306]
[1723809596998,6.09274,2616.2,2615.6,3.8232]
[1723809597149,6.09274,2616.2,2615.6,7.6464]
[1723809597486,6.09274,2616.2,2615.6,3.8232]
[1723809598949,6.14311,2616.0,2615.4,23.61345]
[1723809599458,2.3204,2616.0,2615.5,3.82335]
[1723809600347,2.3204,2616.0,2615.8,3.8229]
[1723809600547,2.3204,2616.0,2615.6,3.82311]
[1723809601365,2.3204,2616.0,2615.6,7.64625]
[1723809601588,2.3204,2616.0,2615.6,3.82311]
[1723809602145,2.3204,2616.0,2615.7,3.82305]
[1723809602697,3.822,2616.5,2615.8,3.82291]
[1723809602698,2.4592,2616.4,2615.8,3.82291]
[1723809602987,3.155,2616.9,2615.8,3.82291]
[1723809602988,2.4592,2617.2,2616.3,3.82216]
[1723809603172,2.4592,2617.2,2616.7,3.82157]
[1723809603396,2.4592,2617.2,2616.7,3.82152]
[1723809603707,2.4592,2617.2,2616.7,3.82149]
[1723809603911,2.4592,2617.2,2616.9,3.8213]
[1723809604080,2.4592,2617.2,2617.0,3.82115]
[1723809604284,3.82014,2617.7,2616.9,3.82123]
[1723809604285,2.3663,2617.6,2616.9,3.82123]
[1723809604474,6.18662,2617.6,2616.9,4.203293]
[1723809604666,6.18662,2617.6,2617.0,3.82108]
[1723809605609,6.17181,2617.3,2616.7,3.82148]
[1723809605786,6.17181,2617.3,2616.7,7.643]
[1723809605983,2.351,2617.3,2616.7,3.82148]
[1723809606185,2.351,2617.3,2616.9,3.8213]
[1723809606377,6.17181,2617.3,2616.7,3.82148]
[1723809606571,6.788959,2617.3,2616.6,3.82166]
[1723809606802,2.3497,2616.9,2616.3,3.82208]
[1723809607138,2.3497,2616.9,2616.5,3.82187]
[1723809607413,0.6788959,2617.2,2616.6,3.82174]
[1723809607414,2.3497,2617.2,2616.6,3.82174]
[1723809607616,2.96675,2617.2,2616.6,3.82174]
[1723809607909,6.78771,2617.2,2616.6,3.82174]
[1723809608112,6.78771,2617.2,2616.6,7.64342]
[1723809608325,6.78771,2617.2,2616.6,3.82168]
[1723809608704,6.78771,2617.2,2616.4,3.82195]
[1723809608705,3.82105,2617.1,2616.4,3.82194]
[1723809608926,8.703021,2617.1,2616.5,3.82187]
[1723809609416,2.2985,2616.9,2616.4,3.82194]
[1723809609722,6.11982,2616.9,2616.2,3.82219]
[1723809609922,2.2985,2616.6,2615.8,3.82282]
[1723809610127,5.61593806,2617.7,2615.3,3.82361]
[1723809610128,2.2985,2616.2,2615.3,3.82361]
[1723809610427,2.2985,2616.2,2615.9,3.82277]
[1723809610598,2.4306,2616.5,2615.9,3.8227]
[1723809610800,6.25256,2616.5,2615.9,3.82269]
[1723809611010,6.25256,2616.5,2615.9,7.64539]
[1723809611011,6.49562,2616.5,2615.9,7.64539]
[1723809611538,6.49562,2616.5,2615.9,3.82269]
[1723809611732,6.49562,2616.5,2615.9,7.64537]
[1723809612033,2.67366,2616.5,2616.0,3.82262]
[1723809612835,2.4306,2616.5,2616.3,3.82217]
[1723809613138,2.4968,2616.8,2616.0,3.82261]
[1723809613433,3.8211,2617.1,2616.0,3.82261]
[1723809613434,6.318,2617.0,2616.4,3.82201]
[1723809613622,3.51071,2617.0,2616.4,3.82202]
[1723809613938,7.33197,2617.0,2616.4,3.82202]
[1723809614438,7.33197,2617.0,2616.5,35.0]
[1723809614639,3.82132,2616.9,2616.5,35.0]
[1723809615116,6.30946,2616.8,2616.2,3.82224]
[1723809615435,3.82161,2616.7,2616.2,3.82224]
[1723809616095,2.488,2616.8,2616.2,3.82224]
[1723809616301,6.30949,2616.8,2616.2,3.82224]
[1723809616537,3.82134,2616.9,2616.2,3.82224]
[1723809616735,6.30263,2616.9,2616.4,3.82193]
[1723809616895,10.12404,2616.9,2616.2,3.8222]
[1723809617221,2.4813,2616.8,2616.3,38.82217]
[1723809617798,2.4813,2616.8,2616.3,35.0]
[1723809618003,3.82161,2616.7,2616.3,35.0]
[1723809618465,4.37448446,2616.7,2616.3,35.0]
[1723809618665,4.37448446,2616.7,2616.1,3.8224]
[1723809619028,4.37448446,2616.7,2616.2,35.0]
[1723809619269,3.82193,2616.5,2615.7,4.14611503]
[1723809619424,3.82193,2616.5,2615.3,0.7985753]
[1723809619425,2.337,2616.4,2616.1,3.82239]
[1723809619648,3.82163,2616.7,2616.1,4.204629]
[1723809619649,2.337,2616.7,2616.1,4.204629]
[1723809619853,2.337,2616.7,2616.1,3.82239]
[1723809620250,2.337,2616.7,2616.4,3.82191]
[1723809620451,2.4312,2617.1,2616.9,3.82119]
[1723809620657,2.4312,2617.5,2617.0,35.0]
[1723809620887,2.4312,2617.5,2617.1,3.821]
[1723809621104,2.4312,2617.5,2617.1,3.82091]
[1723809621562,2.4312,2617.5,2617.1,38.82091]
[1723809622305,3.056343,2617.5,2616.4,0.382191]
[1723809622508,3.82065,2617.4,2616.7,3.82152]
[1723809622826,3.82065,2617.4,2616.8,38.82143]
[1723809622977,4.827873,2617.4,2616.8,38.82143]
[1723809623173,3.89697787,2617.3,2616.4,0.382191]
[1723809623380,2.41925787,2617.2,2616.3,3.8221]
[1723809623677,3.82136,2616.9,2616.3,3.8221]
[1723809624073,2.51245787,2616.8,2616.2,1.23229445]
[1723809624395,2.51245787,2616.8,2616.0,3.82256]
[1723809624396,3.82188,2616.6,2616.0,3.82256]
[1723809624723,0.382136,2616.9,2616.4,3.82202]
[1723809624943,3.82124,2617.0,2616.4,3.82202]
[1723809625224,6.27497,2617.0,2616.4,3.82194]
[1723809625435,6.902467,2617.0,2616.2,3.82221]
[1723809625720,3.82153,2616.8,2616.2,3.82221]
[1723809626152,3.82153,2616.8,2616.0,3.82259]
[1723809626153,2.4871,2616.6,2616.0,3.82255]
[1723809626447,10.13078,2616.6,2616.0,3.82255]
[1723809626650,6.30894,2616.6,2616.0,7.6451]
[1723809626832,2.4871,2616.6,2616.1,7.63189125]
[1723809627447,2.4871,2616.6,2616.2,3.82231]
[1723809627647,3.82156,2616.8,2616.2,3.82225]
[1723809627861,4.203716,2616.8,2616.2,3.82225]
[1723809628501,4.203716,2616.8,2616.2,7.6445]
[1723809628702,6.30862,2616.9,2616.2,3.82225]
[1723809628902,6.30862,2616.9,2616.3,3.82218]
[1723809629102,6.30862,2616.9,2616.4,3.82203]
[1723809629404,2.4873,2616.9,2616.4,3.82203]
[1723809629826,2.4873,2616.9,2616.5,3.82181]
[1723809630355,3.82105,2617.1,2616.5,3.82181]
[1723809630560,2.4774,2617.2,2616.7,3.82149]
[1723809630899,6.29828,2617.2,2616.7,3.82149]
[1723809631300,2.4774,2617.2,2616.7,3.82149]
[1723809631757,2.4774,2617.2,2616.8,3.82145]
[1723809631902,2.4774,2617.5,2617.1,3.82097]
[1723809632104,2.4774,2617.5,2617.1,3.82093]
[1723809632642,6.11797,2617.8,2617.1,3.82093]
[1723809632950,0.382007,2617.7,2617.1,3.82093]
[1723809633250,0.382007,2617.7,2616.9,3.8212]
[1723809633251,3.82037,2617.6,2617.0,3.82114]
[1723809633452,0.4202377,2617.5,2617.0,3.82114]
[1723809634131,0.4202377,2617.5,2617.1,3.821]
[1723809634332,3.82037,2617.6,2617.1,3.821]
[1723809634646,3.82047,2617.5,2616.9,3.8212]
[1723809635493,3.82047,2617.5,2616.5,6.18524]
[1723809635494,2.4567,2617.3,2616.5,3.8218]
[1723809635631,2.4567,2617.4,2616.5,3.8218]
[1723809635834,3.82087,2617.2,2616.5,3.8218]
[1723809636071,3.82103,2617.1,2616.5,3.8218]
[1723809636579,3.82073,2617.3,2616.5,4.5862]
[1723809636742,6.27736,2617.4,2616.9,3.82124]
[1723809636743,2.4567,2617.4,2616.9,3.82124]
[1723809636934,6.2773,2617.4,2616.8,7.64275]
[1723809637284,3.82038,2617.6,2617.0,3.82108]
[1723809637511,3.82048,2617.5,2617.0,3.82108]
[1723809637791,3.82037,2617.6,2617.0,3.82108]
[1723809638140,7.64078,2617.6,2617.0,3.82108]
[1723809638383,3.82047,2617.5,2617.0,3.82108]
[1723809639905,3.82037,2617.6,2617.0,3.82108]
[1723809640191,7.64077,2617.6,2617.0,3.82108]
[1723809640493,8.634897,2617.6,2617.0,3.82108]
[1723809640795,4.814497,2617.6,2617.0,3.82108]
[1723809641256,8.634867,2617.6,2617.0,3.82108]
[1723809641665,8.634907,2617.6,2617.0,3.82108]
[1723809642043,0.994127,2617.6,2616.8,11.27135]
[1723809642381,3.82075,2617.3,2616.8,7.45]
[1723809642745,3.8211,2617.1,2616.8,7.45]
[1723809643378,3.82131,2616.9,2616.8,7.45]
[1723809643647,3.82131,2616.9,2616.3,3.82218]
[1723809643648,3.82147,2616.8,2616.3,11.27218]
[1723809644653,2.3072,2617.0,2616.3,11.27208]
[1723809644874,2.3072,2617.0,2616.4,1.127218]
[1723809645691,6.12836,2617.0,2616.5,3.82189]
[1723809645895,2.3072,2617.0,2616.6,3.82175]
[1723809646098,2.3072,2617.0,2616.5,1.6221188]
[1723809646099,2.3072,2617.0,2616.5,3.82189]
[1723809646399,2.3072,2617.0,2616.6,3.82175]
[1723809646787,2.3072,2617.0,2616.5,3.82188]
[1723809647857,3.82132,2616.9,2616.4,3.8219]
[1723809649353,3.82132,2616.9,2616.4,7.64387]
[1723809649558,3.82132,2616.9,2616.4,3.8219]
[1723809649983,6.12839,2617.0,2616.4,3.8219]
[1723809650460,6.12839,2617.0,2616.4,7.64387]
[1723809651119,2.3072,2617.0,2616.5,3.82181]
[1723809651266,2.4682,2617.3,2616.9,3.8213]
[1723809651612,2.4682,2617.3,2616.5,2.487]
[1723809651613,2.4682,2617.3,2616.8,3.82145]
[1723809651762,2.4682,2617.3,2616.9,3.8213]
[1723809651959,2.4682,2617.3,2616.8,3.82145]
[1723809651960,3.82044,2617.5,2617.0,3.82113]
[1723809652189,2.4682,2617.6,2617.1,3.82101]
[1723809653597,3.82009,2617.8,2617.2,3.82085]
[1723809653806,6.28813,2617.9,2617.3,3.82061]
[1723809654771,3.82,2617.8,2617.3,3.82061]
[1723809655172,3.82,2617.8,2617.2,3.82085]
[1723809655469,3.82027,2617.7,2617.0,31.06103]
[1723809655697,3.82027,2617.7,2617.1,3.821]
[1723809656034,3.82027,2617.7,2617.2,7.64172]
[1723809656163,3.82027,2617.7,2617.2,7.64166]
[1723809656359,3.82027,2617.7,2617.2,3.8208]
[1723809656819,3.82,2617.8,2617.3,3.8207]
[1723809657117,7.64011,2617.8,2617.2,3.82078]
[1723809657614,3.82015,2617.7,2617.2,3.82078]
[1723809658489,3.82015,2617.7,2617.1,3.106103]
[1723809658689,3.82015,2617.7,2617.0,34.88209]
[1723809658989,3.82015,2617.7,2617.2,3.82087]
[1723809659192,3.82015,2617.7,2617.0,34.88204]
[1723809659389,3.82015,2617.7,2617.1,3.82094]
[1723809659728,3.82002,2617.8,2617.3,3.8207]
[1723809660487,3.82015,2617.7,2617.1,7.63036125]
[1723809660882,3.82015,2617.7,2617.2,3.8208]
[1723809661326,10.736934,2617.9,2617.3,3.82071]
[1723809661522,10.1081,2617.9,2617.3,3.82071]
[1723809661685,2.4682,2617.9,2617.3,3.82071]
[1723809662529,6.28806,2617.9,2617.3,3.82071]
[1723809662685,11.118761,2617.9,2617.3,3.82071]
[1723809662904,3.82026,2617.7,2617.1,3.82092]
[1723809663131,0.77165079,2617.6,2617.1,7.64187]
[1723809663335,3.82026,2617.7,2617.1,7.64187]
[1723809663484,3.82029,2617.6,2617.1,3.82092]
[1723809664455,3.82015,2617.7,2617.1,3.82092]
[1723809665392,3.82009,2617.8,2617.2,3.8208]
[1723809665705,3.82016,2617.7,2617.2,5.329972]
[1723809665912,3.82016,2617.7,2617.2,3.8208]
[1723809666457,3.82016,2617.7,2617.1,3.82092]
[1723809667653,3.82016,2617.7,2617.1,7.64186]
[1723809668650,3.82016,2617.7,2617.2,3.82086]